[Event "*** Titled Tuesday Blitz"]
[Site "Chess.com"]
[Date "2020.04.21"]
[Round "2"]
[White "MichailovM"]
[Black "GothamChess"]
[Result "0-1"]
[WhiteElo "2301"]
[BlackElo "2585"]
[TimeControl "180+1"]
[EndTime "10:18:06 PDT"]
[Termination "GothamChess won on time"]

1. e4 {[%clk 0:03:00.7]} 1... c6 {[%clk 0:02:58.7]} 2. d4 {[%clk 0:03:00.7]}
2... d5 {[%clk 0:02:57.5]} 3. e5 {[%clk 0:02:58.3]} 3... Bf5 {[%clk 0:02:54]} 4.
h4 {[%clk 0:02:57.3]} 4... Qc8 {[%clk 0:02:51.7]} 5. c4 {[%clk 0:02:48.9]} 5...
dxc4 {[%clk 0:02:32.2]} 6. Bxc4 {[%clk 0:02:47.1]} 6... e6 {[%clk 0:02:27.4]} 7.
Nc3 {[%clk 0:02:46.6]} 7... h5 {[%clk 0:02:15.9]} 8. Nge2 {[%clk 0:02:45.4]}
8... Nd7 {[%clk 0:02:10.3]} 9. Ng3 {[%clk 0:02:42.6]} 9... Bg6 {[%clk
0:02:08.4]} 10. Bg5 {[%clk 0:02:38.3]} 10... Nb6 {[%clk 0:01:54.6]} 11. Bb3
{[%clk 0:02:38.2]} 11... Ne7 {[%clk 0:01:45.3]} 12. O-O {[%clk 0:02:32.8]} 12...
Ned5 {[%clk 0:01:37.5]} 13. Nce4 {[%clk 0:02:28.7]} 13... Qd7 {[%clk 0:01:30.1]}
14. Rc1 {[%clk 0:02:25.6]} 14... a5 {[%clk 0:01:11.7]} 15. a3 {[%clk 0:02:19.2]}
15... a4 {[%clk 0:01:11.8]} 16. Ba2 {[%clk 0:02:16.8]} 16... Ra5 {[%clk
0:01:10.7]} 17. Qd2 {[%clk 0:01:39.9]} 17... Rb5 {[%clk 0:01:09.8]} 18. f4
{[%clk 0:01:29.9]} 18... Bf5 {[%clk 0:01:05.6]} 19. Nxf5 {[%clk 0:01:28.3]}
19... exf5 {[%clk 0:01:06.5]} 20. Nc3 {[%clk 0:01:28.1]} 20... Nxc3 {[%clk
0:01:03.7]} 21. bxc3 {[%clk 0:01:17]} 21... Bxa3 {[%clk 0:01:01.7]} 22. Rb1
{[%clk 0:01:17.4]} 22... O-O {[%clk 0:00:59.7]} 23. c4 {[%clk 0:01:14.3]} 23...
Rxb1 {[%clk 0:00:56.6]} 24. Rxb1 {[%clk 0:01:15.2]} 24... Bc5 {[%clk 0:00:57.2]}
25. Rd1 {[%clk 0:01:06.4]} 25... Be7 {[%clk 0:00:53.2]} 26. d5 {[%clk
0:01:01.5]} 26... Bc5+ {[%clk 0:00:47.7]} 27. Kh2 {[%clk 0:01:00.6]} 27... a3
{[%clk 0:00:37.9]} 28. Qa5 {[%clk 0:00:55.6]} 28... Be3 {[%clk 0:00:29.2]} 29.
Rd3 {[%clk 0:00:55.5]} 29... Bf2 {[%clk 0:00:28.9]} 30. Rd2 {[%clk 0:00:40.8]}
30... Be3 {[%clk 0:00:28.6]} 31. Re2 {[%clk 0:00:41.3]} 31... Bd4 {[%clk
0:00:28.6]} 32. e6 {[%clk 0:00:41.7]} 32... Qd6 {[%clk 0:00:24.5]} 33. c5 {[%clk
0:00:36.3]} 33... Qxc5 {[%clk 0:00:22.4]} 34. Qxc5 {[%clk 0:00:26.2]} 34... Bxc5
{[%clk 0:00:23]} 35. dxc6 {[%clk 0:00:25.7]} 35... bxc6 {[%clk 0:00:20.3]} 36.
exf7+ {[%clk 0:00:25.2]} 36... Kh7 {[%clk 0:00:20.6]} 37. Re8 {[%clk 0:00:18.8]}
37... Nd5 {[%clk 0:00:19.2]} 38. Re6 {[%clk 0:00:11.5]} 38... Nb4 {[%clk
0:00:16.7]} 39. Bb1 {[%clk 0:00:09.1]} 39... Rxf7 {[%clk 0:00:17.1]} 40. Re5
{[%clk 0:00:05.7]} 40... Bd4 {[%clk 0:00:15.4]} 41. Rxf5 {[%clk 0:00:01.1]}
41... Rxf5 {[%clk 0:00:15.4]} 0-1

[Event "*** Titled Tuesday Blitz"]
[Site "Chess.com"]
[Date "2020.04.21"]
[Round "2"]
[White "Qingdom"]
[Black "Lion-Al-Messi"]
[Result "1/2-1/2"]
[WhiteElo "2203"]
[BlackElo "2426"]
[TimeControl "180+1"]
[EndTime "10:18:06 PDT"]
[Termination "Game drawn - insufficient material"]

1. d4 {[%clk 0:03:00.9]} 1... b6 {[%clk 0:02:59]} 2. e4 {[%clk 0:03:00.5]} 2...
Bb7 {[%clk 0:02:58.8]} 3. Bd3 {[%clk 0:03:00.6]} 3... e6 {[%clk 0:02:58.5]} 4.
Nf3 {[%clk 0:02:59.9]} 4... c5 {[%clk 0:02:57.4]} 5. c3 {[%clk 0:02:57.9]} 5...
Nf6 {[%clk 0:02:57.9]} 6. Qe2 {[%clk 0:02:57.5]} 6... Be7 {[%clk 0:02:58]} 7.
O-O {[%clk 0:02:56.3]} 7... Nc6 {[%clk 0:02:57.3]} 8. a3 {[%clk 0:02:54.8]} 8...
O-O {[%clk 0:02:53.6]} 9. Nbd2 {[%clk 0:02:52.8]} 9... a5 {[%clk 0:02:53]} 10.
Re1 {[%clk 0:02:50.8]} 10... d6 {[%clk 0:02:45.7]} 11. Nf1 {[%clk 0:02:49.7]}
11... Nd7 {[%clk 0:02:36.4]} 12. Ne3 {[%clk 0:02:34.1]} 12... g6 {[%clk
0:02:26.8]} 13. Bd2 {[%clk 0:02:27.5]} 13... Bf6 {[%clk 0:02:25.8]} 14. Ng4
{[%clk 0:02:22.4]} 14... Bg7 {[%clk 0:02:24.5]} 15. e5 {[%clk 0:02:18.8]} 15...
dxe5 {[%clk 0:02:22.9]} 16. dxe5 {[%clk 0:02:14.8]} 16... Qc7 {[%clk 0:01:52.6]}
17. Bh6 {[%clk 0:02:00.1]} 17... Bxh6 {[%clk 0:01:47.2]} 18. Nxh6+ {[%clk
0:01:59.9]} 18... Kg7 {[%clk 0:01:47.5]} 19. Qe3 {[%clk 0:01:57.7]} 19... Ncxe5
{[%clk 0:01:39.2]} 20. Nxe5 {[%clk 0:01:55.8]} 20... Nxe5 {[%clk 0:01:29.5]} 21.
Bb5 {[%clk 0:01:46.3]} 21... Rad8 {[%clk 0:01:26.8]} 22. f4 {[%clk 0:01:38.2]}
22... Kxh6 {[%clk 0:01:13.8]} 23. fxe5+ {[%clk 0:01:33.5]} 23... Kg7 {[%clk
0:01:14.1]} 24. Qg5 {[%clk 0:01:30.8]} 24... Kg8 {[%clk 0:01:02.5]} 25. Rad1
{[%clk 0:01:26.1]} 25... Ba8 {[%clk 0:00:55.6]} 26. h4 {[%clk 0:01:15.1]} 26...
Rxd1 {[%clk 0:00:41.6]} 27. Rxd1 {[%clk 0:01:14.6]} 27... Qb7 {[%clk 0:00:41.9]}
28. Rd7 {[%clk 0:01:08.7]} 28... Qe4 {[%clk 0:00:39.3]} 29. Bf1 {[%clk
0:00:54.8]} 29... h6 {[%clk 0:00:37.5]} 30. Qf6 {[%clk 0:00:53.4]} 30... Qf5
{[%clk 0:00:36.4]} 31. Qe7 {[%clk 0:00:50.1]} 31... Kg7 {[%clk 0:00:32.6]} 32.
Rd8 {[%clk 0:00:47.7]} 32... Rxd8 {[%clk 0:00:32.5]} 33. Qxd8 {[%clk 0:00:47.2]}
33... Bd5 {[%clk 0:00:32.9]} 34. Qxb6 {[%clk 0:00:45.9]} 34... Qxe5 {[%clk
0:00:32.8]} 35. Qxc5 {[%clk 0:00:45.3]} 35... Qf4 {[%clk 0:00:28]} 36. Qd4+
{[%clk 0:00:44.3]} 36... Qxd4+ {[%clk 0:00:28.3]} 37. cxd4 {[%clk 0:00:45.1]}
37... Kf6 {[%clk 0:00:29.2]} 38. Kf2 {[%clk 0:00:45.6]} 38... Ke7 {[%clk
0:00:30.1]} 39. Ke3 {[%clk 0:00:45.8]} 39... Kd6 {[%clk 0:00:31]} 40. b4 {[%clk
0:00:45.9]} 40... f5 {[%clk 0:00:31.9]} 41. bxa5 {[%clk 0:00:45.4]} 41... Kc6
{[%clk 0:00:32.5]} 42. g3 {[%clk 0:00:44.3]} 42... Kb7 {[%clk 0:00:32.8]} 43.
Kd2 {[%clk 0:00:43.4]} 43... g5 {[%clk 0:00:32.8]} 44. hxg5 {[%clk 0:00:42.1]}
44... hxg5 {[%clk 0:00:33.7]} 45. Ke3 {[%clk 0:00:35.3]} 45... Kc6 {[%clk
0:00:33.9]} 46. Bd3 {[%clk 0:00:34]} 46... Kb7 {[%clk 0:00:33.3]} 47. Bb5 {[%clk
0:00:33.4]} 47... Kc7 {[%clk 0:00:32]} 48. Kd2 {[%clk 0:00:28.9]} 48... Kb7
{[%clk 0:00:32.1]} 49. Ke3 {[%clk 0:00:29]} 49... Kc7 {[%clk 0:00:31.6]} 50. Bd3
{[%clk 0:00:26.5]} 50... Kc6 {[%clk 0:00:31.2]} 51. Be2 {[%clk 0:00:26.1]} 51...
Be4 {[%clk 0:00:30.8]} 52. Bc4 {[%clk 0:00:25.7]} 52... Kd6 {[%clk 0:00:29.6]}
53. a6 {[%clk 0:00:21.2]} 53... Ba8 {[%clk 0:00:29.5]} 54. a4 {[%clk 0:00:20.6]}
54... e5 {[%clk 0:00:29.7]} 55. dxe5+ {[%clk 0:00:19.9]} 55... Kxe5 {[%clk
0:00:30.6]} 56. Bb5 {[%clk 0:00:19.4]} 56... f4+ {[%clk 0:00:31]} 57. gxf4+
{[%clk 0:00:19.7]} 57... gxf4+ {[%clk 0:00:31.9]} 58. Kf2 {[%clk 0:00:20.2]}
58... Kd4 {[%clk 0:00:32]} 59. Bd7 {[%clk 0:00:20.3]} 59... Kc5 {[%clk
0:00:32.1]} 60. Bc8 {[%clk 0:00:21]} 60... Kb6 {[%clk 0:00:32.2]} 61. Bb7 {[%clk
0:00:21.7]} 61... Bxb7 {[%clk 0:00:32.3]} 62. axb7 {[%clk 0:00:22.2]} 62... Kxb7
{[%clk 0:00:33.2]} 63. Kf3 {[%clk 0:00:22.7]} 63... Kb6 {[%clk 0:00:33.8]} 64.
Kxf4 {[%clk 0:00:23.4]} 64... Ka5 {[%clk 0:00:34.4]} 65. Ke4 {[%clk 0:00:24.1]}
65... Kxa4 {[%clk 0:00:34.7]} 1/2-1/2

[Event "*** Titled Tuesday Blitz"]
[Site "Chess.com"]
[Date "2020.04.21"]
[Round "2"]
[White "Grineva_Marianna"]
[Black "adiosabu"]
[Result "1-0"]
[WhiteElo "2183"]
[BlackElo "2413"]
[TimeControl "180+1"]
[EndTime "10:18:07 PDT"]
[Termination "Grineva_Marianna won by resignation"]

1. d4 {[%clk 0:03:00.9]} 1... Nf6 {[%clk 0:02:57.3]} 2. Nf3 {[%clk 0:02:58]}
2... d6 {[%clk 0:02:56.1]} 3. c4 {[%clk 0:02:57.9]} 3... Nbd7 {[%clk 0:02:55.7]}
4. Nc3 {[%clk 0:02:57]} 4... e5 {[%clk 0:02:56.3]} 5. e3 {[%clk 0:02:54.9]} 5...
Be7 {[%clk 0:02:55.6]} 6. Be2 {[%clk 0:02:54]} 6... O-O {[%clk 0:02:56.1]} 7.
O-O {[%clk 0:02:53.5]} 7... c6 {[%clk 0:02:56.8]} 8. b3 {[%clk 0:02:50.6]} 8...
a6 {[%clk 0:02:56.3]} 9. Bb2 {[%clk 0:02:49.7]} 9... b5 {[%clk 0:02:56.2]} 10.
Rc1 {[%clk 0:02:41.1]} 10... Bb7 {[%clk 0:02:54.7]} 11. dxe5 {[%clk 0:02:29]}
11... dxe5 {[%clk 0:02:48.8]} 12. Qc2 {[%clk 0:02:25.3]} 12... Qa5 {[%clk
0:02:30.7]} 13. Rfd1 {[%clk 0:02:13.4]} 13... Ba3 {[%clk 0:02:21.7]} 14. Bxa3
{[%clk 0:01:47.1]} 14... Qxa3 {[%clk 0:02:21.1]} 15. Ne4 {[%clk 0:01:39.9]}
15... Nxe4 {[%clk 0:00:49.3]} 16. Qxe4 {[%clk 0:01:40.8]} 16... Qe7 {[%clk
0:00:44.8]} 17. Rd2 {[%clk 0:00:46.6]} 17... Rae8 {[%clk 0:00:43.7]} 18. Rcd1
{[%clk 0:00:35.2]} 18... Nf6 {[%clk 0:00:43.5]} 19. Qf5 {[%clk 0:00:32.1]} 19...
Bc8 {[%clk 0:00:42]} 20. Qc2 {[%clk 0:00:29.9]} 20... Bg4 {[%clk 0:00:39.5]} 21.
h3 {[%clk 0:00:29.3]} 21... Bh5 {[%clk 0:00:39.4]} 22. cxb5 {[%clk 0:00:22]}
22... cxb5 {[%clk 0:00:38.3]} 23. Rd6 {[%clk 0:00:20.7]} 23... Rc8 {[%clk
0:00:33.5]} 24. Qd2 {[%clk 0:00:20.5]} 24... e4 {[%clk 0:00:32.2]} 25. Ne1
{[%clk 0:00:18.3]} 25... Bxe2 {[%clk 0:00:22.8]} 26. Qxe2 {[%clk 0:00:19.2]}
26... Ra8 {[%clk 0:00:20]} 27. Nc2 {[%clk 0:00:18.8]} 27... Rfc8 {[%clk
0:00:19.5]} 28. Nb4 {[%clk 0:00:18.7]} 28... a5 {[%clk 0:00:19.8]} 29. Nc2
{[%clk 0:00:15.5]} 29... b4 {[%clk 0:00:18.8]} 30. Ne1 {[%clk 0:00:13.6]} 30...
h6 {[%clk 0:00:19]} 31. Kf1 {[%clk 0:00:13.7]} 31... Qe5 {[%clk 0:00:19.3]} 32.
Qd2 {[%clk 0:00:10.5]} 32... Qb5+ {[%clk 0:00:18.5]} 33. Kg1 {[%clk 0:00:10.1]}
33... Qe5 {[%clk 0:00:18.3]} 34. Qd4 {[%clk 0:00:10.1]} 34... Qf5 {[%clk
0:00:18]} 35. g3 {[%clk 0:00:08.8]} 35... Kh7 {[%clk 0:00:16.7]} 36. Kg2 {[%clk
0:00:08]} 36... h5 {[%clk 0:00:15.8]} 37. Rd2 {[%clk 0:00:06.4]} 37... h4 {[%clk
0:00:15.6]} 38. Nc2 {[%clk 0:00:05.8]} 38... Qf3+ {[%clk 0:00:14.2]} 39. Kh2
{[%clk 0:00:05.6]} 39... hxg3+ {[%clk 0:00:13.5]} 40. fxg3 {[%clk 0:00:05.1]}
40... Rxc2 {[%clk 0:00:13.4]} 41. Rxc2 {[%clk 0:00:04.9]} 41... Qh5 {[%clk
0:00:13.2]} 42. Rg2 {[%clk 0:00:05]} 42... Ng4+ {[%clk 0:00:12.3]} 43. Kg1
{[%clk 0:00:05.5]} 43... Nf6 {[%clk 0:00:12.4]} 44. Rxf6 {[%clk 0:00:04.8]}
44... Rc8 {[%clk 0:00:09.3]} 45. Qxe4+ {[%clk 0:00:04.6]} 45... Kg8 {[%clk
0:00:08.6]} 46. Rf1 {[%clk 0:00:05.1]} 1-0

[Event "*** Titled Tuesday Blitz"]
[Site "Chess.com"]
[Date "2020.04.21"]
[Round "2"]
[White "Vuk2000"]
[Black "HomayoonTofighi"]
[Result "0-1"]
[WhiteElo "2600"]
[BlackElo "2913"]
[TimeControl "180+1"]
[EndTime "10:18:08 PDT"]
[Termination "HomayoonTofighi won by resignation"]

1. d4 {[%clk 0:03:00.9]} 1... Nf6 {[%clk 0:02:58.7]} 2. Bg5 {[%clk 0:03:00.9]}
2... e6 {[%clk 0:02:55.9]} 3. e4 {[%clk 0:03:00.6]} 3... d5 {[%clk 0:02:41.9]}
4. Bd3 {[%clk 0:02:37.4]} 4... dxe4 {[%clk 0:02:40.6]} 5. Bxe4 {[%clk
0:02:36.8]} 5... h6 {[%clk 0:02:35]} 6. Bxf6 {[%clk 0:02:34.4]} 6... gxf6 {[%clk
0:02:33.3]} 7. Ne2 {[%clk 0:02:27.4]} 7... c5 {[%clk 0:02:20.3]} 8. Nbc3 {[%clk
0:02:24.8]} 8... cxd4 {[%clk 0:02:14.6]} 9. Qxd4 {[%clk 0:02:23.1]} 9... Qxd4
{[%clk 0:02:10.6]} 10. Nxd4 {[%clk 0:02:24]} 10... Bc5 {[%clk 0:02:06.7]} 11.
O-O-O {[%clk 0:02:13.9]} 11... Ke7 {[%clk 0:01:58.8]} 12. Rd2 {[%clk 0:02:10.2]}
12... f5 {[%clk 0:01:53.9]} 13. Bf3 {[%clk 0:02:01.1]} 13... Nd7 {[%clk
0:01:54.3]} 14. Nb3 {[%clk 0:01:46.2]} 14... Bb6 {[%clk 0:01:49.7]} 15. Re1
{[%clk 0:01:37.2]} 15... Kf6 {[%clk 0:01:47.5]} 16. g3 {[%clk 0:01:33.6]} 16...
h5 {[%clk 0:01:35.6]} 17. Nb5 {[%clk 0:01:27.4]} 17... Ne5 {[%clk 0:01:30.6]}
18. Bg2 {[%clk 0:01:23.7]} 18... h4 {[%clk 0:01:30.7]} 19. Nd6 {[%clk
0:01:20.6]} 19... Ng4 {[%clk 0:01:19.1]} 20. h3 {[%clk 0:01:07.5]} 20... Nxf2
{[%clk 0:01:16.9]} 21. gxh4 {[%clk 0:01:06.9]} 21... Rxh4 {[%clk 0:01:11.7]} 22.
c4 {[%clk 0:00:39.2]} 22... Nxh3 {[%clk 0:01:01.2]} 23. c5 {[%clk 0:00:36.7]}
23... Bd8 {[%clk 0:00:52.1]} 24. Nxf5 {[%clk 0:00:27.4]} 24... Kxf5 {[%clk
0:00:42]} 25. Bxh3+ {[%clk 0:00:24.2]} 25... Rxh3 {[%clk 0:00:42]} 26. Rxd8
{[%clk 0:00:25.1]} 26... b6 {[%clk 0:00:32.1]} 27. Rf1+ {[%clk 0:00:13]} 27...
Ke5 {[%clk 0:00:29]} 28. c6 {[%clk 0:00:12.8]} 28... f5 {[%clk 0:00:25]} 29. Rg1
{[%clk 0:00:09.5]} 29... Bb7 {[%clk 0:00:16.4]} 30. c7 {[%clk 0:00:03.6]} 30...
Rh7 {[%clk 0:00:14.3]} 31. Rxa8 {[%clk 0:00:01.6]} 31... Rxc7+ {[%clk
0:00:12.6]} 32. Kd2 {[%clk 0:00:02.5]} 32... Bxa8 {[%clk 0:00:12.2]} 33. Nc1
{[%clk 0:00:02.2]} 33... Rd7+ {[%clk 0:00:12.8]} 34. Kc2 {[%clk 0:00:02.5]}
34... Be4+ {[%clk 0:00:13.5]} 35. Kb3 {[%clk 0:00:03.3]} 35... Kf4 {[%clk
0:00:14]} 36. a4 {[%clk 0:00:03.8]} 36... Bd5+ {[%clk 0:00:14.5]} 37. Kb4 {[%clk
0:00:03.8]} 37... Ke3 {[%clk 0:00:15.4]} 38. Re1+ {[%clk 0:00:03.4]} 38... Kd2
{[%clk 0:00:16]} 39. Rf1 {[%clk 0:00:03.8]} 39... Rc7 {[%clk 0:00:16.5]} 40.
Nb3+ {[%clk 0:00:03.2]} 40... Bxb3 {[%clk 0:00:17.1]} 41. Kxb3 {[%clk
0:00:04.1]} 41... Re7 {[%clk 0:00:17.7]} 42. Kc4 {[%clk 0:00:03.7]} 42... Ke2
{[%clk 0:00:18.4]} 43. Rf4 {[%clk 0:00:03.9]} 43... Ke3 {[%clk 0:00:18.9]} 0-1

[Event "*** Titled Tuesday Blitz"]
[Site "Chess.com"]
[Date "2020.04.21"]
[Round "2"]
[White "nocnypako"]
[Black "Jenia84"]
[Result "1-0"]
[WhiteElo "2589"]
[BlackElo "2289"]
[TimeControl "180+1"]
[EndTime "10:18:09 PDT"]
[Termination "nocnypako won by resignation"]

1. d4 {[%clk 0:03:00.9]} 1... Nf6 {[%clk 0:02:59.1]} 2. c4 {[%clk 0:03:00.5]}
2... e6 {[%clk 0:02:55.5]} 3. Nc3 {[%clk 0:03:00.7]} 3... Bb4 {[%clk 0:02:54.5]}
4. e3 {[%clk 0:02:58.2]} 4... O-O {[%clk 0:02:52.4]} 5. Ne2 {[%clk 0:02:58.8]}
5... Re8 {[%clk 0:02:51.7]} 6. a3 {[%clk 0:02:58.8]} 6... Bf8 {[%clk 0:02:51.4]}
7. d5 {[%clk 0:02:59.7]} 7... exd5 {[%clk 0:02:47.6]} 8. cxd5 {[%clk 0:03:00.6]}
8... d6 {[%clk 0:02:46.9]} 9. Nf4 {[%clk 0:02:59.6]} 9... Bf5 {[%clk 0:02:40.4]}
10. Be2 {[%clk 0:02:47.7]} 10... Nbd7 {[%clk 0:02:37.1]} 11. O-O {[%clk
0:02:47]} 11... a5 {[%clk 0:02:36]} 12. f3 {[%clk 0:02:47]} 12... Nc5 {[%clk
0:02:24.4]} 13. e4 {[%clk 0:02:46.6]} 13... Bd7 {[%clk 0:02:23.2]} 14. Be3
{[%clk 0:02:44]} 14... b6 {[%clk 0:02:17.3]} 15. b4 {[%clk 0:02:40.6]} 15... Na6
{[%clk 0:01:30.5]} 16. Rb1 {[%clk 0:02:28.8]} 16... g6 {[%clk 0:01:28.6]} 17.
Qd2 {[%clk 0:02:26.5]} 17... Bg7 {[%clk 0:01:27.9]} 18. Rfc1 {[%clk 0:02:26.6]}
18... axb4 {[%clk 0:01:13.1]} 19. axb4 {[%clk 0:02:26.1]} 19... Qb8 {[%clk
0:01:01.3]} 20. Nb5 {[%clk 0:02:24.3]} 20... Rc8 {[%clk 0:00:53.8]} 21. Nd4
{[%clk 0:02:24.1]} 21... Ne8 {[%clk 0:00:47.3]} 22. Ra1 {[%clk 0:02:01.6]} 22...
Qb7 {[%clk 0:00:44.7]} 23. Ra2 {[%clk 0:01:59.5]} 23... b5 {[%clk 0:00:41.3]}
24. Nc6 {[%clk 0:01:50.1]} 24... Kf8 {[%clk 0:00:27.6]} 25. Bd4 {[%clk
0:01:46.5]} 25... Nb8 {[%clk 0:00:24.9]} 26. Bxg7+ {[%clk 0:01:39.9]} 26... Nxg7
{[%clk 0:00:24.1]} 27. Rxa8 {[%clk 0:01:23.8]} 27... Qxa8 {[%clk 0:00:24.1]} 28.
Bxb5 {[%clk 0:01:22.8]} 28... Qb7 {[%clk 0:00:23.5]} 29. Ba4 {[%clk 0:01:14.5]}
29... Qa6 {[%clk 0:00:21.6]} 30. Nxb8 {[%clk 0:01:02.1]} 30... Qxa4 {[%clk
0:00:21.5]} 31. Nxd7+ {[%clk 0:01:00.9]} 31... Qxd7 {[%clk 0:00:21.9]} 32. Qc3
{[%clk 0:00:58.9]} 32... h6 {[%clk 0:00:20.5]} 33. Qc6 {[%clk 0:00:52.6]} 33...
Qxc6 {[%clk 0:00:20.2]} 34. Rxc6 {[%clk 0:00:42.2]} 34... Ne8 {[%clk 0:00:19.2]}
35. Nd3 {[%clk 0:00:37]} 35... Rb8 {[%clk 0:00:19.5]} 36. Kf2 {[%clk 0:00:37.7]}
36... Ke7 {[%clk 0:00:19.7]} 37. Ke3 {[%clk 0:00:37.2]} 37... Kd7 {[%clk
0:00:20.2]} 38. f4 {[%clk 0:00:35.8]} 38... f5 {[%clk 0:00:19.8]} 39. e5 {[%clk
0:00:34.2]} 39... Rb5 {[%clk 0:00:19.1]} 40. Kd4 {[%clk 0:00:31.3]} 40... g5
{[%clk 0:00:19.3]} 41. g3 {[%clk 0:00:28.4]} 41... gxf4 {[%clk 0:00:17.6]} 42.
gxf4 {[%clk 0:00:29.3]} 42... Ke7 {[%clk 0:00:14.5]} 43. Kc4 {[%clk 0:00:25.1]}
43... Rb6 {[%clk 0:00:11.3]} 44. b5 {[%clk 0:00:24.2]} 44... Rxc6+ {[%clk
0:00:10.6]} 45. bxc6 {[%clk 0:00:25.1]} 45... Ng7 {[%clk 0:00:09.7]} 46. Kd4
{[%clk 0:00:20.6]} 46... Nh5 {[%clk 0:00:09.4]} 47. Ke3 {[%clk 0:00:20.8]} 47...
Kd8 {[%clk 0:00:06.8]} 48. Nb4 {[%clk 0:00:20.9]} 48... dxe5 {[%clk 0:00:05.9]}
49. fxe5 {[%clk 0:00:20.7]} 49... f4+ {[%clk 0:00:06.1]} 50. Ke4 {[%clk
0:00:20.9]} 50... Ke7 {[%clk 0:00:06.1]} 51. Nd3 {[%clk 0:00:21.2]} 1-0

[Event "*** Titled Tuesday Blitz"]
[Site "Chess.com"]
[Date "2020.04.21"]
[Round "2"]
[White "Rainmond"]
[Black "cholzan"]
[Result "1-0"]
[WhiteElo "2720"]
[BlackElo "2501"]
[TimeControl "180+1"]
[EndTime "10:18:10 PDT"]
[Termination "Rainmond won by checkmate"]

1. e4 {[%clk 0:03:00]} 1... e6 {[%clk 0:02:59]} 2. d4 {[%clk 0:02:59.3]} 2... d5
{[%clk 0:02:59.4]} 3. Nc3 {[%clk 0:02:58.4]} 3... Bb4 {[%clk 0:02:58.9]} 4. exd5
{[%clk 0:02:48.4]} 4... exd5 {[%clk 0:02:58.4]} 5. Bd3 {[%clk 0:02:48]} 5... Nf6
{[%clk 0:02:57.8]} 6. Ne2 {[%clk 0:02:45.2]} 6... c5 {[%clk 0:02:57.2]} 7. a3
{[%clk 0:02:42.1]} 7... Bxc3+ {[%clk 0:02:56.6]} 8. Nxc3 {[%clk 0:02:41.7]} 8...
c4 {[%clk 0:02:56.1]} 9. Be2 {[%clk 0:02:36.9]} 9... O-O {[%clk 0:02:56.2]} 10.
Bg5 {[%clk 0:02:21.3]} 10... h6 {[%clk 0:02:55.3]} 11. Bxf6 {[%clk 0:02:12.7]}
11... Qxf6 {[%clk 0:02:56.2]} 12. Nxd5 {[%clk 0:02:12.4]} 12... Qd6 {[%clk
0:02:45.7]} 13. Bxc4 {[%clk 0:02:01.3]} 13... Be6 {[%clk 0:02:23.2]} 14. Ne3
{[%clk 0:02:00.4]} 14... Bxc4 {[%clk 0:02:23.1]} 15. Nxc4 {[%clk 0:02:00.3]}
15... Re8+ {[%clk 0:02:21.3]} 16. Ne3 {[%clk 0:01:59.1]} 16... Nc6 {[%clk
0:02:19]} 17. c3 {[%clk 0:01:58.7]} 17... f5 {[%clk 0:02:17.3]} 18. O-O {[%clk
0:01:51.5]} 18... f4 {[%clk 0:02:17.2]} 19. Nc4 {[%clk 0:01:47.8]} 19... Qg6
{[%clk 0:02:15.2]} 20. Qf3 {[%clk 0:01:43]} 20... Rf8 {[%clk 0:02:15.3]} 21.
Rfe1 {[%clk 0:01:42.1]} 21... Kh8 {[%clk 0:02:00.6]} 22. d5 {[%clk 0:01:40]}
22... Nd8 {[%clk 0:01:59.2]} 23. Ne5 {[%clk 0:01:36]} 23... Qf5 {[%clk
0:01:59.1]} 24. c4 {[%clk 0:01:32.6]} 24... Nf7 {[%clk 0:01:57.3]} 25. Nxf7+
{[%clk 0:01:29.3]} 25... Rxf7 {[%clk 0:01:58.2]} 26. Re4 {[%clk 0:01:28.4]}
26... Raf8 {[%clk 0:01:57.7]} 27. Rae1 {[%clk 0:01:27.6]} 27... b5 {[%clk
0:01:56.5]} 28. b3 {[%clk 0:01:21.5]} 28... bxc4 {[%clk 0:01:53.8]} 29. bxc4
{[%clk 0:01:22.1]} 29... Qd7 {[%clk 0:01:53.2]} 30. h3 {[%clk 0:01:16.8]} 30...
Qd6 {[%clk 0:01:51.7]} 31. Re6 {[%clk 0:01:15.2]} 31... Qc5 {[%clk 0:01:51.4]}
32. Rc6 {[%clk 0:01:13.9]} 32... Qa5 {[%clk 0:01:50.3]} 33. Ree6 {[%clk
0:01:12.9]} 33... Rb7 {[%clk 0:01:43.5]} 34. Qe4 {[%clk 0:01:07.9]} 34... Qc3
{[%clk 0:01:22.4]} 35. Re8 {[%clk 0:00:49.5]} 35... Rf7 {[%clk 0:01:16.9]} 36.
Rcc8 {[%clk 0:00:36.4]} 36... Qf6 {[%clk 0:01:16.1]} 37. c5 {[%clk 0:00:30.4]}
37... f3 {[%clk 0:01:14.9]} 38. d6 {[%clk 0:00:16]} 38... fxg2 {[%clk
0:01:13.1]} 39. Rxf8+ {[%clk 0:00:15.7]} 39... Rxf8 {[%clk 0:01:12.7]} 40. Rxf8+
{[%clk 0:00:15.6]} 40... Qxf8 {[%clk 0:01:13.6]} 41. d7 {[%clk 0:00:15.8]} 41...
Qf6 {[%clk 0:01:01.9]} 42. Qe8+ {[%clk 0:00:11.1]} 42... Kh7 {[%clk 0:01:01.9]}
43. d8=Q {[%clk 0:00:10.9]} 43... Qa1+ {[%clk 0:00:58.9]} 44. Kxg2 {[%clk
0:00:06.3]} 44... Qb1 {[%clk 0:00:59.2]} 45. Qg8+ {[%clk 0:00:05.2]} 45... Kg6
{[%clk 0:00:59.3]} 46. Qd6+ {[%clk 0:00:05.9]} 46... Kh5 {[%clk 0:00:59.3]} 47.
Qf7+ {[%clk 0:00:05.8]} 47... Kg5 {[%clk 0:00:58.6]} 48. Qf3 {[%clk 0:00:06.5]}
48... Qf5 {[%clk 0:00:55.8]} 49. h4+ {[%clk 0:00:05]} 49... Kxh4 {[%clk
0:00:54.5]} 50. Qxf5 {[%clk 0:00:04.8]} 50... g5 {[%clk 0:00:54.8]} 51. Qh3#
{[%clk 0:00:04.9]} 1-0